lending/lending_fUSD_20251114
["ID","MTS","AMOUNT","RATE_DAILY","PERIOD"]
[393976282,1763153438340,-500.0,0.00016453,2]
[393976284,1763153438350,-500.0,0.00016453,2]
[393976286,1763153438360,-500.0,0.00016453,2]
[393976288,1763153438370,-500.0,0.00016453,2]
[393976290,1763153438380,-500.0,0.00016453,2]
[393976292,1763153438389,-305.11298493,0.00016453,2]
[393976294,1763153438399,-500.0,0.00016453,2]
[393976297,1763153438409,-500.0,0.00016453,2]
[393976299,1763153438419,-500.0,0.00016453,2]
[393976301,1763153438429,-500.0,0.00016453,2]
[393976303,1763153438438,-500.0,0.00016453,2]
[393976305,1763153438448,-500.0,0.00016453,2]
[393976307,1763153438457,-500.0,0.00016453,2]
[393976309,1763153438467,-500.0,0.00016453,2]
[393976311,1763153438476,-500.0,0.00016453,2]
[393976313,1763153438490,-500.0,0.00016453,2]
[393976315,1763153438500,-500.0,0.00016453,2]
[393976317,1763153438511,-500.0,0.00016453,2]
[393976319,1763153438521,-500.0,0.00016453,2]
[393976321,1763153438531,-500.0,0.00016453,2]
[393976323,1763153438540,-500.0,0.00016453,2]
[393976325,1763153438551,-500.0,0.00016453,2]
[393976327,1763153438561,-500.0,0.00016453,2]
[393976329,1763153438572,-500.0,0.00016453,2]
[393976331,1763153438582,-500.0,0.00016453,2]
[393976333,1763153438591,-500.0,0.00016453,2]
[393976336,1763153438602,-576.52816287,0.00016453,2]
[393976338,1763153438612,-500.0,0.00016453,2]
[393976340,1763153438623,-500.0,0.00016453,2]
[393976342,1763153438633,-500.0,0.00016453,2]
[393976344,1763153438644,-500.0,0.00016453,2]
[393976346,1763153438654,-500.0,0.00016453,2]
[393976348,1763153438664,-500.0,0.00016453,2]
[393976350,1763153438675,-500.0,0.00016453,2]
[393976352,1763153438685,-500.0,0.00016453,2]
[393976354,1763153438696,-500.0,0.00016453,2]
[393976356,1763153438706,-500.0,0.00016453,2]
[393976358,1763153438716,-500.0,0.00016453,2]
[393976360,1763153438725,-500.0,0.00016453,2]
[393976362,1763153438744,-500.0,0.00016453,2]
[393976365,1763153438758,-500.0,0.00016453,2]
[393976367,1763153438769,-500.0,0.00016453,2]
[393976369,1763153438779,-500.0,0.00016453,2]
[393976371,1763153438790,-500.0,0.00016453,2]
[393976373,1763153438800,-500.0,0.00016453,2]
[393976375,1763153438811,-500.0,0.00016453,2]
[393976377,1763153438821,-618.65920546,0.00016453,2]
[393976379,1763153438831,-500.0,0.00016453,2]
[393976381,1763153438841,-500.0,0.00016453,2]
[393976383,1763153438852,-500.0,0.00016453,2]
[393976385,1763153438862,-500.0,0.00016453,2]
[393976387,1763153438873,-500.0,0.00016453,2]
[393976389,1763153438884,-500.0,0.00016453,2]
[393976391,1763153438895,-500.0,0.00016453,2]
[393976393,1763153438907,-500.0,0.00016453,2]
[393976395,1763153438918,-500.0,0.00016453,2]
[393976397,1763153438931,-500.0,0.00016453,2]
[393976399,1763153438943,-300.0,0.00016453,2]
[393976401,1763153438955,-500.0,0.00016453,2]
[393976403,1763153438966,-500.0,0.00016453,2]
[393976405,1763153438977,-500.0,0.00016453,2]
[393976407,1763153438995,-560.98223452,0.00016453,2]
[393976409,1763153439006,-410.0,0.000165,2]
[393976412,1763153439018,-500.0,0.00016575,2]
[393976414,1763153439029,-1000.0,0.00016629,2]
[393976416,1763153439039,-150.0,0.00016695,2]
[393976418,1763153439051,-190.36,0.00016712,2]
[393976420,1763153439060,-151.0,0.00016716,2]
[393976422,1763153439070,-151.0,0.00016716,2]
[393976424,1763153439081,-151.0,0.00016716,2]
[393976426,1763153439091,-151.0,0.00016716,2]
[393976428,1763153439102,-151.0,0.00016716,2]
[393976430,1763153439113,-151.0,0.00016716,2]
[393976432,1763153439123,-151.0,0.00016716,2]
[393976434,1763153439135,-151.0,0.00016716,2]
[393976436,1763153439148,-151.0,0.00016716,2]
[393976438,1763153439160,-151.0,0.00016716,2]
[393976440,1763153439171,-151.0,0.00016716,2]
[393976442,1763153439182,-151.0,0.00016716,2]
[393976445,1763153439192,-151.0,0.00016716,2]
[393976447,1763153439202,-151.0,0.00016716,2]
[393976449,1763153439212,-151.0,0.00016716,2]
[393976451,1763153439224,-151.0,0.00016716,2]
[393976454,1763153439238,-151.0,0.00016716,2]
[393976457,1763153439249,-151.0,0.00016716,2]
[393976459,1763153439260,-151.0,0.00016716,2]
[393976461,1763153439271,-151.0,0.00016716,2]
[393976463,1763153439282,-1159.9,0.00016725,2]
[393976465,1763153439293,-21027.19012765,0.00016726,2]
[393976467,1763153439304,-218.6,0.00016731,2]
[393976469,1763153439314,-1674.4905,0.000169,2]
[393976471,1763153439325,-7797.53,0.00016986,2]
[393976474,1763153439336,-1159.9,0.00016999,2]
[393976476,1763153439346,-250.0,0.00017,2]
[393976478,1763153439356,-438.0,0.00017096,2]
[393976480,1763153439367,-250.0,0.00017251,2]
[393976482,1763153439377,-1159.9,0.00017273,2]
[393976484,1763153439388,-624.53061268,0.000174,2]
[393976486,1763153439398,-272.69,0.00017432,2]
[393976489,1763153439408,-250.0,0.00017515,2]
[393976491,1763153439419,-1159.9,0.00017547,2]
[393976493,1763153439429,-348.54168816,0.0001756,2]
[393976495,1763153439441,-1099.10040447,0.00017567,2]
[393976497,1763153439451,-1000.0,0.00017588,2]
[393976499,1763153439461,-1099.10040447,0.00017733,2]
[393976501,1763153439471,-218.46281109,0.00017771,2]
[393976503,1763153439484,-9979.19521276,0.000178,2]
[393976505,1763153439494,-300.0,0.00017809,2]
[393976507,1763153439504,-9979.19521272,0.00017811,2]
[393976509,1763153439514,-1159.9,0.00017821,2]
[393976511,1763153439525,-9979.19521272,0.00017822,2]
[393976513,1763153439536,-62620.26309221,0.0001783,2]
[393976515,1763153439547,-9979.19521272,0.00017833,2]
[393976517,1763153439558,-9979.19521272,0.00017844,2]
[393976519,1763153439568,-9979.19521272,0.00017856,2]
[393976521,1763153439580,-9979.19521272,0.00017867,2]
[393976522,1763153439590,-440.46876719,0.00017873,2]
[393976523,1763153439601,-420.0,0.00017874,2]
[393976524,1763153439612,-9979.19521272,0.00017878,2]
[393976525,1763153439623,-500.0,0.00017893,2]
[393976526,1763153439635,-1099.10040447,0.000179,2]
[393976527,1763153439647,-52723.89086247,0.000179,2]
[393976528,1763153439657,-1383.02396584,0.000179,2]
[393976529,1763153439668,-770.0567231,0.000179,2]
[393976530,1763153439679,-430.57185618,0.000179,2]
[393976531,1763153439691,-597.72273396,0.000179,2]
[393976533,1763153439703,-369.459913,0.000179,2]
[393976535,1763153439713,-592.73989998,0.000179,2]
[393976537,1763153439724,-150.0,0.00017936,2]
[393976538,1763153439741,-150.0,0.00017936,2]
[393976541,1763153439752,-150.0,0.00017945,2]
[393976543,1763153439763,-150.0,0.00017945,2]
[393976545,1763153439773,-500.0,0.00017945,2]
[393976547,1763153439784,-500.0,0.00017945,2]
[393976549,1763153439794,-150.0,0.00017945,2]
[393976551,1763153439804,-192.40019802,0.00017945,2]
[393976553,1763153439814,-500.0,0.00017945,2]
[393976555,1763153439824,-150.0,0.00017945,2]
[393976557,1763153439834,-150.0,0.00017945,2]
[393976559,1763153439844,-1680.0,0.00017963,2]
[393976561,1763153439854,-500.0,0.00017973,2]
[393976562,1763153439864,-500.0,0.00017973,2]
[393976564,1763153439873,-500.0,0.00017973,2]
[393976567,1763153439884,-155.04743738,0.00017973,2]
[393976569,1763153439894,-172.40826591,0.00017973,2]
[393976571,1763153439905,-308.20130097,0.00017973,2]
[393976573,1763153439915,-520.24957429,0.00017973,2]
[393976575,1763153439926,-500.0,0.00017973,2]
[393976577,1763153439936,-500.0,0.00017973,2]
[393976579,1763153439946,-189.53779023,0.00017973,2]
[393976581,1763153439956,-500.0,0.00017973,2]
[393976583,1763153439966,-500.0,0.00017973,2]
[393976585,1763153439975,-500.0,0.00017973,2]
[393976587,1763153439991,-500.0,0.00017973,2]
[393976589,1763153440002,-500.97016324,0.00017973,2]
[393976591,1763153440012,-220.81623409,0.0001799,2]
[393976594,1763153440023,-2621.0,0.00018,2]
[393976596,1763153440033,-341350.80364534,0.00018,2]
[393976598,1763153440048,-1893.48,0.00018,2]
[393976601,1763153440061,-574.85415923,0.00018,2]
[393976603,1763153440073,-622.08775657,0.00018,2]
[393976624,1763153440276,-7600.08,0.00017889,2]
[393976627,1763153440290,-1768.64278667,0.00017889,2]
[393976630,1763153440311,-610.47242605,0.00017889,2]
[393976632,1763153440321,-490.8032381,0.00018,2]
[393976895,1763153442688,-507.08234434,0.00018,2]
[393977133,1763153445866,-533.76,0.000179,2]
[393977134,1763153445980,-6856.62932311,0.000179,2]
[393977135,1763153445994,-2588.80588961,0.000179,2]
[393977136,1763153446004,-34005.17067891,0.00018,2]
[393977137,1763153446015,-15518.80369591,0.00018,2]
[393977144,1763153479253,160.849292,0.0004141,30]
[393977145,1763153479566,160.849292,0.0004141,30]
[393977146,1763153483664,169.845965,0.0004141,30]
[393977147,1763153483985,169.845965,0.0004141,30]
[393977148,1763153484366,169.845965,0.0004141,30]
[393977149,1763153484695,169.845965,0.0004141,30]
[393977372,1763153532189,152.36376,0.0004141,30]
[393977373,1763153532278,161.956927,0.0004141,30]
[393977374,1763153532577,152.36376,0.0004141,30]
[393977375,1763153532894,152.36376,0.0004141,30]
[393977376,1763153533221,152.36376,0.0004141,30]
[393977378,1763153795355,3937.91,8.261e-05,2]
[393977379,1763153795561,3937.91,8.695e-05,2]
[393977380,1763153795766,1524.595171,9.13e-05,2]
[393977381,1763153795792,2413.314829,9.13e-05,2]
[393977382,1763153795973,3937.91,9.565e-05,2]
[393977383,1763153796386,3648.785171,0.0001,2]
[393977384,1763153796410,289.124829,0.0001,2]
[393977385,1763153796646,3937.91,0.00010435,2]
[393977386,1763153796857,3937.91,0.00010869,2]
[393977387,1763153797074,1835.065171,0.00011304,2]
[393977388,1763153797098,2102.844829,0.00011304,2]
[393977389,1763153797368,3937.91,0.00011739,2]
[393977390,1763153797545,3937.91,0.00012174,2]
[393977391,1763153797762,21.345171,0.00012608,2]
[393977392,1763153797787,3916.564829,0.00012608,2]
[393977393,1763153797982,3937.91,0.00013043,2]
[393977394,1763153798204,2145.535171,0.00013478,2]
[393977395,1763153798228,1792.374829,0.00013478,2]
[393977396,1763153798405,3937.91,0.00013913,2]
[393977397,1763153798615,3937.91,0.00014347,2]
[393977398,1763153798860,331.815171,0.00014782,2]
[393977399,1763153798883,3606.094829,0.00014782,2]
[393977400,1763153799077,3937.91,0.00015217,2]
[393977401,1763153799292,2456.005171,0.00015652,2]
[393977402,1763153799317,1481.904829,0.00015652,2]
[393977409,1763153944257,-957.36,0.00024658,30]
[393977410,1763153944323,-215.32489497,0.00028672,30]
[393977411,1763153944382,-957.36,0.00029704,30]
[393977412,1763153944441,-150.0,0.00032877,60]
[393977413,1763153944496,-150.0,0.00033014,60]
[393977414,1763153944550,-150.0,0.00033151,60]
[393977415,1763153944609,-150.0,0.00033288,60]
[393977416,1763153944664,-150.0,0.00033425,60]
[393977417,1763153944718,-250.0,0.00033562,60]
[393977418,1763153944771,-957.36,0.00034751,30]
[393977419,1763153944824,-203.04962929,0.00035,30]
[393977420,1763153945106,-170.90146133,0.00035,30]
[393977421,1763153945165,-251.54118551,0.00035343,30]
[393977422,1763153945221,-150.0,0.00035343,30]
[393977423,1763153945274,-198.32164368,0.0003561,120]
[393977424,1763153945328,-208.41367534,0.00035628,120]
[393977425,1763153945391,-184.66,0.000361,33]
[393977426,1763153945454,-24505.99824363,0.00037,30]
[393977427,1763153945510,-10830.1999904,0.00037,30]
[393977428,1763153945567,-12053.20043711,0.00037,30]
[393977429,1763153945621,-478.82688331,0.00037,30]
[393977430,1763153945684,-500.0,0.00038356,30]
[393977431,1763153945742,-500.0,0.0003863,30]
[393977432,1763153945802,-158.73,0.00038636,120]
[393977433,1763153945860,-158.73,0.00038736,120]
[393977434,1763153945916,-158.73,0.00038836,120]
[393977435,1763153945966,-500.01,0.00038904,30]
[393977436,1763153946015,-158.73,0.00038936,120]
[393977437,1763153946060,-478.82688331,0.00039,30]
[393977438,1763153946106,-40046.54649788,0.00039,120]
[393977439,1763153946153,-158.73,0.00039036,120]
[393977440,1763153946204,-158.73,0.00039136,120]
[393977441,1763153946253,-158.73,0.00039236,120]
[393977442,1763153946299,-158.73,0.00039336,120]
[393977443,1763153946356,-158.73,0.00039436,120]
[393977444,1763153946405,-158.73,0.00039536,120]
[393977445,1763153946453,-158.73,0.00039636,120]
[393977446,1763153946501,-158.77,0.00039736,120]
[393977447,1763153946546,-957.36,0.00039798,30]
[393977448,1763153946611,-889.409,0.00040979,59]
[393977449,1763153946663,-5000.0,0.00041,120]
[393977450,1763153946718,-208.41367534,0.00041108,120]
[393977451,1763153946775,-177.26,0.0004137,30]
[393977452,1763153946829,-151.803297,0.00041405,120]
[393977453,1763153946881,-151.0,0.00041405,120]
[393977454,1763153946930,-151.0,0.00041405,120]
[393977455,1763153946975,-151.0,0.00041405,120]
[393977456,1763153947019,-151.0,0.00041405,120]
[393977457,1763153947062,-151.0,0.00041405,120]
[393977458,1763153947105,-151.0,0.00041405,120]
[393977459,1763153947149,-151.0,0.00041405,120]
[393977460,1763153947193,-227.168976,0.00041405,120]
[393977461,1763153947236,-151.0,0.00041405,120]
[393977462,1763153947280,-151.0,0.00041405,120]
[393977463,1763153947323,-151.0,0.00041405,120]
[393977464,1763153947366,-151.0,0.00041405,120]
[393977465,1763153947410,-152.400036,0.00041405,120]
[393977466,1763153947451,-151.0,0.00041405,120]
[393977467,1763153947494,-151.0,0.00041405,120]
[393977468,1763153947541,-151.0,0.00041405,120]
[393977469,1763153947587,-153.113376,0.0004141,120]
[393977470,1763153947636,-151.0,0.0004141,120]
[393977471,1763153947685,-160.0,0.0004141,120]
[393977472,1763153947733,-153.431995,0.0004141,120]
[393977473,1763153947780,-218.442421,0.0004141,120]
[393977474,1763153947827,-151.0,0.0004141,60]
[393977475,1763153947877,-151.0,0.0004141,120]
[393977476,1763153947928,-151.0,0.0004141,120]
[393977477,1763153947975,-153.738398,0.0004141,120]
[393977478,1763153948021,-151.0,0.0004141,120]
[393977479,1763153948068,-151.0,0.0004141,120]
[393977480,1763153948121,-151.0,0.0004141,120]
[393977481,1763153948170,-151.0,0.0004141,120]
[393977482,1763153948217,-151.0,0.0004141,120]
[393977483,1763153948267,-151.0,0.0004141,120]
[393977484,1763153948318,-151.0,0.0004141,120]
[393977485,1763153948368,-189.725263,0.0004141,120]
[393977486,1763153948413,-151.0,0.0004141,120]
[393977487,1763153948457,-152.849832,0.0004141,120]
[393977488,1763153948502,-151.0,0.0004141,120]
[393977489,1763153948547,-151.0,0.0004141,120]
[393977490,1763153948596,-151.0,0.0004141,30]
[393977491,1763153948655,-151.0,0.0004141,120]
[393977492,1763153948710,-151.0,0.0004141,120]
[393977493,1763153948774,-160.288355,0.0004141,120]
[393977494,1763153948830,-151.0,0.0004141,120]
[393977495,1763153948886,-151.0,0.0004141,120]
[393977496,1763153948942,-264.408345,0.0004141,120]
[393977497,1763153948990,-161.547548,0.0004141,120]
[393977498,1763153949033,-154.748113,0.0004141,120]
[393977499,1763153949077,-151.0,0.0004141,120]
[393977500,1763153949121,-152.690878,0.0004141,120]
[393977501,1763153949168,-285.69320133,0.0004141,120]
[393977502,1763153949213,-153.940144,0.0004141,30]
[393977503,1763153949290,-151.0,0.0004141,120]
[393977504,1763153949339,-156.356045,0.0004141,120]
[393977505,1763153949390,-151.0,0.0004141,120]
[393977506,1763153949434,-156.598795,0.0004141,120]
[393977507,1763153949480,-151.0,0.0004141,120]
[393977508,1763153949526,-151.0,0.0004141,120]
[393977509,1763153949573,-151.0,0.0004141,120]
[393977510,1763153949617,-151.0,0.0004141,120]
[393977511,1763153949663,-151.0,0.0004141,120]
[393977512,1763153949707,-151.0,0.0004141,120]
[393977513,1763153949752,-151.0,0.0004141,120]
[393977514,1763153949798,-151.0,0.0004141,120]
[393977515,1763153949845,-151.0,0.0004141,120]
[393977516,1763153949899,-151.0,0.0004141,120]
[393977517,1763153949951,-151.0,0.0004141,95]
[393977518,1763153950000,-151.0,0.0004141,95]
[393977519,1763153950054,-151.0,0.0004141,120]
[393977520,1763153950114,-151.0,0.0004141,120]
[393977521,1763153950373,-153.151303,0.0004141,120]
[393977522,1763153950421,-151.0,0.0004141,120]
[393977523,1763153950465,-157.004935,0.0004141,120]
[393977524,1763153950508,-151.0,0.0004141,120]
[393977525,1763153950553,-151.0,0.0004141,120]
[393977526,1763153950598,-151.0,0.0004141,120]
[393977527,1763153950649,-159.229738,0.0004141,120]
[393977528,1763153950702,-151.0,0.0004141,120]
[393977529,1763153950755,-151.0,0.0004141,120]
[393977530,1763153950808,-151.0,0.0004141,120]
[393977531,1763153950862,-151.0,0.0004141,120]
[393977532,1763153950916,-250.746764,0.0004141,120]
[393977533,1763153950961,-151.0,0.0004141,120]
[393977534,1763153951006,-151.0,0.0004141,120]
[393977535,1763153951049,-151.0,0.0004141,120]
[393977536,1763153951093,-151.0,0.0004141,120]
[393977537,1763153951142,-151.0,0.0004141,120]
[393977538,1763153951185,-151.0,0.0004141,120]
[393977539,1763153951229,-151.0,0.0004141,120]
[393977540,1763153951277,-151.0,0.0004141,120]
[393977541,1763153951321,-151.0,0.0004141,120]
[393977542,1763153951366,-151.0,0.0004141,120]
[393977543,1763153951410,-151.0,0.0004141,120]
[393977544,1763153951453,-151.0,0.0004141,120]
[393977545,1763153951496,-180.18267902,0.0004141,120]
[393977546,1763153951543,-153.713462,0.0004141,120]
[393977547,1763153951589,-151.0,0.0004141,120]
[393977548,1763153951634,-151.0,0.0004141,120]
[393977549,1763153951681,-278.750171,0.0004141,120]
[393977550,1763153951731,-151.0,0.0004141,120]
[393977551,1763153951779,-155.052803,0.0004141,120]
[393977552,1763153951828,-151.0,0.0004141,120]
[393977553,1763153951876,-151.0,0.0004141,120]
[393977554,1763153951927,-151.0,0.0004141,120]
[393977555,1763153951976,-151.0,0.0004141,120]
[393977556,1763153952029,-244.357355,0.0004141,120]
[393977557,1763153952082,-151.0,0.0004141,120]
[393977558,1763153952137,-151.0,0.0004141,120]
[393977559,1763153952196,-153.735005,0.0004141,120]
[393977560,1763153952249,-151.0,0.0004141,120]
[393977561,1763153952300,-151.0,0.0004141,120]
[393977562,1763153952351,-244.744961,0.0004141,120]
[393977563,1763153952412,-151.0,0.0004141,120]
[393977564,1763153952462,-151.0,0.0004141,120]
[393977565,1763153952508,-151.0,0.0004141,120]
[393977566,1763153952556,-151.0,0.0004141,120]
[393977567,1763153952604,-151.0,0.0004141,120]
[393977568,1763153952655,-151.0,0.0004141,120]
[393977569,1763153952703,-151.0,0.0004141,120]
[393977570,1763153952752,-155.572859,0.0004141,120]
[393977571,1763153952802,-151.0,0.0004141,120]
[393977572,1763153952878,-151.0,0.0004141,120]
[393977573,1763153952934,-252.158924,0.0004141,120]
[393977574,1763153952984,-212.626187,0.0004141,120]
[393977575,1763153953033,-153.651909,0.0004141,120]
[393977576,1763153953082,-151.0,0.0004141,120]
[393977577,1763153953132,-151.0,0.0004141,120]
[393977578,1763153953181,-151.0,0.0004141,120]
[393977579,1763153953233,-151.0,0.0004141,120]
[393977580,1763153953288,-151.0,0.0004141,120]
[393977581,1763153953344,-151.0,0.0004141,120]
[393977582,1763153953407,-151.0,0.0004141,120]
[393977583,1763153953464,-151.0,0.0004141,120]
[393977584,1763153953512,-151.0,0.0004141,120]
[393977585,1763153953565,-151.0,0.0004141,120]
[393977586,1763153953630,-151.0,0.0004141,120]
[393977587,1763153953694,-151.0,0.0004141,120]
[393977588,1763153953758,-151.0,0.0004141,120]
[393977589,1763153953821,-156.698818,0.0004141,120]
[393977590,1763153953881,-151.0,0.0004141,60]
[393977591,1763153953942,-225.560672,0.0004141,120]
[393977592,1763153954003,-321.897058,0.0004141,120]
[393977593,1763153954062,-321.897058,0.0004141,120]
[393977594,1763153954130,-321.897058,0.0004141,120]
[393977595,1763153954193,-321.897058,0.0004141,120]
[393977596,1763153954256,-321.897058,0.0004141,120]
[393977597,1763153954322,-321.897058,0.0004141,120]
[393977598,1763153954388,-321.897058,0.0004141,120]
[393977599,1763153954450,-321.897058,0.0004141,120]
[393977600,1763153954512,-321.897058,0.0004141,120]
[393977601,1763153954576,-321.897058,0.0004141,120]
[393977602,1763153954664,-321.897058,0.0004141,120]
[393977603,1763153954731,-321.897058,0.0004141,120]
[393977604,1763153954799,-321.897058,0.0004141,120]
[393977605,1763153954868,-321.897058,0.0004141,120]
[393977606,1763153954934,-321.897058,0.0004141,120]
[393977607,1763153954998,-321.897058,0.0004141,120]
[393977608,1763153955062,-321.897058,0.0004141,120]
[393977609,1763153955128,-321.897058,0.0004141,120]
[393977610,1763153955193,-321.897058,0.0004141,120]
[393977611,1763153955258,-321.897053,0.0004141,120]
[393977612,1763153955324,-151.0,0.0004141,120]
[393977613,1763153955392,-151.0,0.0004141,120]
[393977614,1763153955456,-181.476825,0.0004141,120]
[393977615,1763153955521,-151.0,0.0004141,120]
[393977616,1763153955591,-151.0,0.0004141,120]
[393977617,1763153955655,-151.0,0.0004141,120]
[393977618,1763153955718,-151.0,0.0004141,120]
[393977619,1763153955781,-151.0,0.0004141,60]
[393977620,1763153955846,-276.276572,0.0004141,60]
[393977621,1763153955909,-151.0,0.0004141,30]
[393977622,1763153955972,-151.0,0.0004141,30]
[393977623,1763153956036,-151.0,0.0004141,30]
[393977624,1763153956099,-151.0,0.0004141,30]
[393977625,1763153956360,-151.0,0.0004141,30]
[393977626,1763153956425,-151.0,0.0004141,120]
[393977627,1763153956482,-151.0,0.0004141,30]
[393977628,1763153956537,-151.0,0.0004141,30]
[393977629,1763153956594,-176.698244,0.0004141,30]
[393977630,1763153956651,-151.0,0.0004141,120]
[393977631,1763153956713,-151.0,0.0004141,120]
[393977632,1763153956780,-468.33243156,0.0004141,30]
[393977633,1763153956834,-607.23015872,0.0004141,30]
[393977634,1763153956890,-478.82688331,0.00042,120]
[393977635,1763153956941,-160.0,0.00042,120]
[393977636,1763153956988,-150.0,0.00042,120]
[393977637,1763153957032,-157.14081554,0.00043,120]
[393977638,1763153957072,-200.0,0.00043683,120]
[393977639,1763153957115,-500.0,0.00043836,31]
[393977640,1763153957155,-150.0,0.00044,57]
[393977641,1763153957195,-957.36,0.00044845,120]
[393977642,1763153957235,-155.0,0.00045,90]
[393977643,1763153957279,-829.65794416,0.00046466,120]
[393977644,1763153957323,-208.41367534,0.00046587,120]
[393977645,1763153957373,-195.64391079,0.000467,120]
[393977646,1763153957423,-164.41405034,0.000467,120]
[393977647,1763153957471,-1064.9702071,0.000467,120]
[393977648,1763153957517,-197.64581887,0.000467,120]
[393977649,1763153957561,-301.70873826,0.000467,120]
[393977650,1763153957608,-232.12761081,0.000467,120]
[393977651,1763153957664,-150.0,0.00047185,30]
[393977652,1763153957717,-200.0,0.00047262,120]
[393977653,1763153957777,-150.0,0.00048007,30]
[393977654,1763153957832,-150.0,0.00048007,30]
[393977655,1763153957886,-195.64391079,0.000481,120]
[393977656,1763153957938,-164.41405034,0.000481,120]
[393977657,1763153957985,-1064.9702071,0.000481,120]
[393977658,1763153958030,-478.08,0.00048692,30]
[393977659,1763153958072,-478.08,0.00048692,30]
[393977660,1763153958119,-478.08,0.00048692,30]
[393977661,1763153958163,-478.08,0.00048692,30]
[393977662,1763153958207,-478.08,0.00048692,30]
[393977663,1763153958252,-201.81,0.00048774,30]
[393977664,1763153958303,-500.0,0.00049315,33]
[393977665,1763153958353,-195.64391079,0.000496,120]
[393977666,1763153958402,-1064.9702071,0.000496,120]
[393977667,1763153958449,-957.36,0.00049892,120]
[393977668,1763153958498,-1000000.0,0.0005,120]
[393977669,1763153958542,-1000000.0,0.0005,120]
[393977670,1763153958587,-1000000.0,0.0005,120]
[393977671,1763153958634,-1000000.0,0.0005,120]
[393977672,1763153958682,-848961.89500863,0.0005,120]
[393977673,1763153966071,-150.0,0.00044704,30]
[393977674,1763153966129,-478.08,0.00048692,30]
[393977675,1763153966178,-150.0,0.00049709,30]
[393977676,1763153966222,-150.0,0.00049709,30]
[393977677,1763153966268,-699.91,0.00049709,30]
[393977678,1763153966316,-151038.10499137,0.0005,120]
[393977679,1763153966367,-1000000.0,0.0005,120]
[393977680,1763153966427,-1000000.0,0.0005,120]
[393977681,1763153966481,-1000000.0,0.0005,120]
[393977682,1763153966537,-1000000.0,0.0005,120]
[393977683,1763153966589,-847333.90500863,0.0005,120]
[393977684,1763153970248,-152666.09499137,0.0005,120]
[393977685,1763153970298,-1000000.0,0.0005,120]
[393977686,1763153970349,-1000000.0,0.0005,120]
[393977687,1763153970400,-1000000.0,0.0005,120]
[393977688,1763153970447,-1000000.0,0.0005,120]
[393977689,1763153970494,-847333.90500863,0.0005,120]
[393977690,1763153973246,-152666.09499137,0.0005,120]
[393977691,1763153973304,-800000.0,0.0005,120]
[393977692,1763153973361,-1000000.0,0.0005,120]
[393977693,1763153973417,-1000000.0,0.0005,120]
[393977694,1763153973466,-1000000.0,0.0005,120]
[393977695,1763153973515,-1000000.0,0.0005,120]
[393977696,1763153973564,-47333.90500863,0.0005,120]
[393977697,1763153976955,-952666.09499137,0.0005,120]
[393977698,1763153977002,-1000000.0,0.0005,120]
[393977699,1763153977049,-1000000.0,0.0005,120]
[393977700,1763153977097,-1000000.0,0.0005,120]
[393977701,1763153977143,-800000.0,0.0005,120]